[Event "Early-Titled-Tuesday-Blitz-September-05-2023"]
[Site "Chess.com"]
[Date "2023.09.05"]
[Round "4"]
[White "hurricane7791"]
[Black "jlf287"]
[Result "1/2-1/2"]
[WhiteElo "2686"]
[BlackElo "2487"]
[TimeControl "180+1"]
[EndTime "8:38:34 PDT"]
[Termination "Game drawn by repetition"]

1. d4 {[%clk 0:03:00.9]} 1... Nf6 {[%clk 0:02:55.6]} 2. c4 {[%clk 0:03:00.8]}
2... e6 {[%clk 0:02:55.9]} 3. Nf3 {[%clk 0:02:59.4]} 3... d5 {[%clk 0:02:55.8]}
4. Nc3 {[%clk 0:02:57.4]} 4... c6 {[%clk 0:02:54.6]} 5. cxd5 {[%clk 0:02:56.7]}
5... exd5 {[%clk 0:02:54.1]} 6. Qc2 {[%clk 0:02:57]} 6... Be7 {[%clk 0:02:52.6]}
7. Bg5 {[%clk 0:02:56.7]} 7... g6 {[%clk 0:02:37.6]} 8. e3 {[%clk 0:02:56.6]}
8... Bf5 {[%clk 0:02:37.3]} 9. Bd3 {[%clk 0:02:57.2]} 9... Bxd3 {[%clk
0:02:37.5]} 10. Qxd3 {[%clk 0:02:58.1]} 10... Nbd7 {[%clk 0:02:37]} 11. Bh6
{[%clk 0:02:55.9]} 11... Bf8 {[%clk 0:02:37]} 12. Bf4 {[%clk 0:02:55.9]} 12...
Bg7 {[%clk 0:02:35.4]} 13. h3 {[%clk 0:02:55.3]} 13... O-O {[%clk 0:02:35.4]}
14. O-O {[%clk 0:02:55.9]} 14... Re8 {[%clk 0:02:35.4]} 15. b4 {[%clk
0:02:54.6]} 15... Rc8 {[%clk 0:02:27]} 16. Rfc1 {[%clk 0:02:52.7]} 16... a6
{[%clk 0:02:18.4]} 17. a4 {[%clk 0:02:50.6]} 17... Ne4 {[%clk 0:02:09.2]} 18.
Rab1 {[%clk 0:02:49.6]} 18... Ndf6 {[%clk 0:01:41.5]} 19. b5 {[%clk 0:02:44.1]}
19... Nxc3 {[%clk 0:01:40.4]} 20. Rxc3 {[%clk 0:02:42.3]} 20... Ne4 {[%clk
0:01:39.4]} 21. Rcc1 {[%clk 0:02:37.9]} 21... axb5 {[%clk 0:01:27.9]} 22. axb5
{[%clk 0:02:36.5]} 22... c5 {[%clk 0:01:28.8]} 23. dxc5 {[%clk 0:02:36.3]} 23...
Nxc5 {[%clk 0:01:25.6]} 24. Qa3 {[%clk 0:02:30.9]} 24... Ne6 {[%clk 0:01:22.6]}
25. Bg3 {[%clk 0:02:06.4]} 25... Qb6 {[%clk 0:01:15.1]} 26. Rxc8 {[%clk
0:02:00.1]} 26... Rxc8 {[%clk 0:01:14.8]} 27. Qd3 {[%clk 0:02:00.8]} 27... d4
{[%clk 0:01:11.1]} 28. exd4 {[%clk 0:01:56.4]} 28... Nxd4 {[%clk 0:01:11.4]} 29.
Nxd4 {[%clk 0:01:57]} 29... Qxd4 {[%clk 0:01:09.3]} 30. Qf3 {[%clk 0:01:57.1]}
30... Qd7 {[%clk 0:01:03.8]} 31. Kh2 {[%clk 0:01:43.1]} 31... h5 {[%clk
0:01:03.2]} 32. h4 {[%clk 0:01:42.5]} 32... Rc5 {[%clk 0:00:54.3]} 33. b6 {[%clk
0:01:39.8]} 33... Rc6 {[%clk 0:00:53.1]} 34. Rd1 {[%clk 0:01:39.7]} 34... Qe6
{[%clk 0:00:38.7]} 35. Rd8+ {[%clk 0:01:24.7]} 35... Kh7 {[%clk 0:00:38.8]} 36.
Bc7 {[%clk 0:01:24.7]} 36... Be5+ {[%clk 0:00:39]} 37. Bxe5 {[%clk 0:01:21.9]}
37... Qxe5+ {[%clk 0:00:39.2]} 38. g3 {[%clk 0:01:22.5]} 38... Qf6 {[%clk
0:00:32.2]} 39. Qxf6 {[%clk 0:01:13.9]} 39... Rxf6 {[%clk 0:00:31.4]} 40. Rd7
{[%clk 0:01:14.8]} 40... Rxf2+ {[%clk 0:00:20.6]} 41. Kg1 {[%clk 0:01:14]} 41...
Rf5 {[%clk 0:00:18.4]} 42. Rxb7 {[%clk 0:01:13.4]} 42... Kg7 {[%clk 0:00:17.8]}
43. Kg2 {[%clk 0:01:14.1]} 43... Rb5 {[%clk 0:00:16.6]} 44. Rb8 {[%clk
0:01:13.3]} 44... Rb3 {[%clk 0:00:16]} 45. Kf2 {[%clk 0:01:14.1]} 45... Kf6
{[%clk 0:00:13.7]} 46. Kg2 {[%clk 0:01:10.5]} 46... Kf5 {[%clk 0:00:13.2]} 47.
Rf8 {[%clk 0:01:08]} 47... f6 {[%clk 0:00:09]} 48. Rb8 {[%clk 0:01:07.5]} 48...
Kg4 {[%clk 0:00:06.4]} 49. b7 {[%clk 0:01:04]} 49... Rb2+ {[%clk 0:00:06.5]} 50.
Kf1 {[%clk 0:01:04]} 50... g5 {[%clk 0:00:05.4]} 51. Rf8 {[%clk 0:00:58.7]}
51... Rxb7 {[%clk 0:00:04.5]} 52. Rxf6 {[%clk 0:00:59.3]} 52... gxh4 {[%clk
0:00:03.9]} 53. gxh4 {[%clk 0:01:00.2]} 53... Kxh4 {[%clk 0:00:03.8]} 54. Kg2
{[%clk 0:01:00.9]} 54... Rb2+ {[%clk 0:00:02.7]} 55. Kh1 {[%clk 0:01:01.3]}
55... Rb1+ {[%clk 0:00:03.2]} 56. Kg2 {[%clk 0:01:01.2]} 56... Rb2+ {[%clk
0:00:03.9]} 57. Kf3 {[%clk 0:01:01.9]} 57... Rb3+ {[%clk 0:00:03.9]} 58. Ke2
{[%clk 0:01:02.5]} 58... Rb4 {[%clk 0:00:04.4]} 59. Re6 {[%clk 0:01:01.5]} 59...
Rf4 {[%clk 0:00:04.9]} 60. Ke3 {[%clk 0:01:00.6]} 60... Rf8 {[%clk 0:00:04.9]}
61. Rg6 {[%clk 0:01:00.4]} 61... Kh3 {[%clk 0:00:05.3]} 62. Ke2 {[%clk
0:00:59.4]} 62... h4 {[%clk 0:00:05.3]} 63. Rg7 {[%clk 0:00:59.6]} 63... Rf4
{[%clk 0:00:05.1]} 64. Ke3 {[%clk 0:00:59.3]} 64... Rf8 {[%clk 0:00:05.2]} 65.
Ke2 {[%clk 0:00:59.2]} 65... Kh2 {[%clk 0:00:05.7]} 66. Rg4 {[%clk 0:00:58.4]}
66... h3 {[%clk 0:00:05.8]} 67. Rg7 {[%clk 0:00:59.2]} 67... Kh1 {[%clk
0:00:05.7]} 68. Rg3 {[%clk 0:00:58.1]} 68... h2 {[%clk 0:00:05.7]} 69. Rg7
{[%clk 0:00:58.8]} 69... Rf6 {[%clk 0:00:05.2]} 70. Rg8 {[%clk 0:00:57.7]} 70...
Ra6 {[%clk 0:00:05.3]} 71. Kf2 {[%clk 0:00:56.6]} 71... Ra2+ {[%clk 0:00:05.2]}
72. Kf1 {[%clk 0:00:56.5]} 72... Ra1+ {[%clk 0:00:04.7]} 73. Kf2 {[%clk
0:00:57.1]} 73... Rg1 {[%clk 0:00:04.5]} 74. Ra8 {[%clk 0:00:54.7]} 74... Rg2+
{[%clk 0:00:04.7]} 75. Kf3 {[%clk 0:00:51]} 75... Rg1 {[%clk 0:00:05.1]} 76. Kf2
{[%clk 0:00:51.3]} 76... Rg2+ {[%clk 0:00:05.4]} 77. Kf3 {[%clk 0:00:51.6]}
77... Rg1 {[%clk 0:00:05.6]} 78. Kf2 {[%clk 0:00:52.3]} 1/2-1/2

[Event "Early-Titled-Tuesday-Blitz-September-05-2023"]
[Site "Chess.com"]
[Date "2023.09.05"]
[Round "4"]
[White "FairChess_on_YouTube"]
[Black "bascheyaro"]
[Result "1-0"]
[WhiteElo "3055"]
[BlackElo "2810"]
[TimeControl "180+1"]
[EndTime "8:38:38 PDT"]
[Termination "FairChess_on_YouTube won by resignation"]

1. d4 {[%clk 0:03:00.9]} 1... d5 {[%clk 0:03:00]} 2. Nf3 {[%clk 0:03:00.5]} 2...
Nf6 {[%clk 0:02:59.9]} 3. c4 {[%clk 0:02:56.6]} 3... c6 {[%clk 0:02:58.5]} 4. e3
{[%clk 0:02:54.6]} 4... a6 {[%clk 0:02:58.1]} 5. Bd3 {[%clk 0:02:50.1]} 5... g6
{[%clk 0:02:55.1]} 6. O-O {[%clk 0:02:49.1]} 6... Bf5 {[%clk 0:02:54.9]} 7. Bxf5
{[%clk 0:02:40.3]} 7... gxf5 {[%clk 0:02:55.8]} 8. Qb3 {[%clk 0:02:40.5]} 8...
Qc7 {[%clk 0:02:48.9]} 9. Bd2 {[%clk 0:02:31.8]} 9... e6 {[%clk 0:02:48.8]} 10.
Ba5 {[%clk 0:02:19.5]} 10... dxc4 {[%clk 0:02:26.6]} 11. Bxc7 {[%clk 0:02:12.6]}
11... cxb3 {[%clk 0:02:27.1]} 12. axb3 {[%clk 0:02:09.5]} 12... Nd5 {[%clk
0:02:26]} 13. Be5 {[%clk 0:02:08.6]} 13... f6 {[%clk 0:02:26.1]} 14. Bg3 {[%clk
0:02:07.7]} 14... Bb4 {[%clk 0:02:25.7]} 15. Nbd2 {[%clk 0:02:06.8]} 15... Nd7
{[%clk 0:02:14.9]} 16. Nc4 {[%clk 0:02:06.8]} 16... Ke7 {[%clk 0:02:14.6]} 17.
Ne1 {[%clk 0:02:04.6]} 17... h5 {[%clk 0:02:07.4]} 18. h3 {[%clk 0:02:02.1]}
18... b5 {[%clk 0:01:42.8]} 19. Nd3 {[%clk 0:01:50.6]} 19... bxc4 {[%clk
0:01:09.6]} 20. bxc4 {[%clk 0:01:51.5]} 20... Bd6 {[%clk 0:00:49.3]} 21. Bxd6+
{[%clk 0:01:37]} 21... Kxd6 {[%clk 0:00:50.2]} 22. cxd5 {[%clk 0:01:37.6]} 22...
cxd5 {[%clk 0:00:51.1]} 23. Ra5 {[%clk 0:01:34.1]} 23... Rhb8 {[%clk 0:00:39.9]}
24. Rfa1 {[%clk 0:01:26.1]} 24... Rb6 {[%clk 0:00:31.5]} 25. b4 {[%clk
0:01:25.9]} 25... Nb8 {[%clk 0:00:29.3]} 26. b5 {[%clk 0:01:20.4]} 26... Ra7
{[%clk 0:00:13.3]} 27. Nc5 {[%clk 0:01:14]} 27... e5 {[%clk 0:00:13.2]} 28. f4
{[%clk 0:01:06.6]} 28... h4 {[%clk 0:00:08.9]} 29. Kf2 {[%clk 0:01:05.5]} 29...
e4 {[%clk 0:00:07.9]} 30. R1a2 {[%clk 0:00:52.2]} 30... Rg7 {[%clk 0:00:08]} 31.
Nxa6 {[%clk 0:00:43.7]} 31... Nxa6 {[%clk 0:00:06.9]} 32. Rxa6 {[%clk
0:00:43.3]} 32... Kc7 {[%clk 0:00:06.9]} 33. Ra7+ {[%clk 0:00:34.9]} 33... Rb7
{[%clk 0:00:06.7]} 34. R2a6 {[%clk 0:00:33.5]} 34... Rf7 {[%clk 0:00:06.3]} 35.
Rc6+ {[%clk 0:00:30.1]} 35... Kb8 {[%clk 0:00:06.4]} 36. Rxb7+ {[%clk
0:00:30.6]} 36... Kxb7 {[%clk 0:00:07]} 37. g3 {[%clk 0:00:30.4]} 37... hxg3+
{[%clk 0:00:06.5]} 38. Kxg3 {[%clk 0:00:31.3]} 38... Rg7+ {[%clk 0:00:06.8]} 39.
Kf2 {[%clk 0:00:31.6]} 39... Rg6 {[%clk 0:00:06.5]} 40. h4 {[%clk 0:00:30.8]}
40... Rh6 {[%clk 0:00:06.3]} 41. h5 {[%clk 0:00:31.4]} 41... Rxh5 {[%clk
0:00:06]} 42. Rxf6 {[%clk 0:00:31.6]} 42... Rh2+ {[%clk 0:00:06.4]} 43. Ke1
{[%clk 0:00:30.8]} 43... Rh3 {[%clk 0:00:06.3]} 44. Kd2 {[%clk 0:00:30.3]} 44...
Rh2+ {[%clk 0:00:06.5]} 45. Kc3 {[%clk 0:00:30.7]} 45... Re2 {[%clk 0:00:07.2]}
46. Rxf5 {[%clk 0:00:29.2]} 46... Rxe3+ {[%clk 0:00:07.8]} 47. Kb4 {[%clk
0:00:29.8]} 47... Rf3 {[%clk 0:00:08.4]} 48. Kc5 {[%clk 0:00:26.1]} 48... e3
{[%clk 0:00:02.3]} 49. Rf7+ {[%clk 0:00:26]} 49... Kc8 {[%clk 0:00:02.9]} 50.
Kxd5 {[%clk 0:00:26.1]} 50... e2 {[%clk 0:00:03]} 51. Re7 {[%clk 0:00:26.1]}
51... Rxf4 {[%clk 0:00:03.7]} 52. Rxe2 {[%clk 0:00:25.9]} 52... Kd7 {[%clk
0:00:04]} 53. Kc5 {[%clk 0:00:23.2]} 53... Rf5+ {[%clk 0:00:04.1]} 54. Re5
{[%clk 0:00:23.5]} 54... Rf1 {[%clk 0:00:04.8]} 55. Rh5 {[%clk 0:00:21.3]} 55...
Rc1+ {[%clk 0:00:04.7]} 56. Kb6 {[%clk 0:00:21.6]} 56... Rh1 {[%clk 0:00:04.8]}
57. Rxh1 {[%clk 0:00:20.6]} 1-0

[Event "Early-Titled-Tuesday-Blitz-September-05-2023"]
[Site "Chess.com"]
[Date "2023.09.05"]
[Round "4"]
[White "Samatsa"]
[Black "CarrotsandPizza"]
[Result "1-0"]
[WhiteElo "2476"]
[BlackElo "2238"]
[TimeControl "180+1"]
[EndTime "8:38:46 PDT"]
[Termination "Samatsa won on time"]

1. d4 {[%clk 0:03:00.9]} 1... Nf6 {[%clk 0:02:58.7]} 2. c4 {[%clk 0:03:01]} 2...
g6 {[%clk 0:02:59.6]} 3. Nc3 {[%clk 0:03:01.4]} 3... Bg7 {[%clk 0:03:00.5]} 4.
e4 {[%clk 0:03:01.8]} 4... d6 {[%clk 0:03:01.4]} 5. Bd3 {[%clk 0:03:02.1]} 5...
O-O {[%clk 0:03:02.3]} 6. Nge2 {[%clk 0:03:02.8]} 6... Nbd7 {[%clk 0:03:03.2]}
7. O-O {[%clk 0:03:01.9]} 7... a6 {[%clk 0:03:03.9]} 8. f3 {[%clk 0:02:59.6]}
8... c5 {[%clk 0:03:02.9]} 9. Be3 {[%clk 0:02:56.8]} 9... Rb8 {[%clk 0:03:01.9]}
10. a4 {[%clk 0:02:55.4]} 10... Qc7 {[%clk 0:02:51.5]} 11. b3 {[%clk 0:02:50.5]}
11... e6 {[%clk 0:02:37.6]} 12. Qd2 {[%clk 0:02:47.1]} 12... Re8 {[%clk
0:02:37]} 13. Kh1 {[%clk 0:02:40.9]} 13... b6 {[%clk 0:02:35.4]} 14. Bc2 {[%clk
0:02:27.1]} 14... Bb7 {[%clk 0:02:33.1]} 15. Rad1 {[%clk 0:02:25.5]} 15... Rbd8
{[%clk 0:02:31]} 16. Bf2 {[%clk 0:02:18]} 16... cxd4 {[%clk 0:02:28.7]} 17. Nxd4
{[%clk 0:02:17]} 17... d5 {[%clk 0:01:56.9]} 18. Bg3 {[%clk 0:02:15.7]} 18...
Qc5 {[%clk 0:01:50.1]} 19. Bf2 {[%clk 0:01:49.7]} 19... Qc7 {[%clk 0:01:40.4]}
20. Bg3 {[%clk 0:01:46.3]} 20... Qc5 {[%clk 0:01:38.5]} 21. Bf2 {[%clk
0:01:46.7]} 21... Qc8 {[%clk 0:01:20.1]} 22. Qe2 {[%clk 0:01:39.8]} 22... dxc4
{[%clk 0:01:17.3]} 23. bxc4 {[%clk 0:01:40.7]} 23... Ne5 {[%clk 0:01:16.3]} 24.
Bb3 {[%clk 0:01:40]} 24... Qc7 {[%clk 0:01:08.7]} 25. Rc1 {[%clk 0:01:33.2]}
25... Rc8 {[%clk 0:01:08.5]} 26. Na2 {[%clk 0:01:32.6]} 26... Red8 {[%clk
0:01:05.7]} 27. Rfd1 {[%clk 0:01:27.3]} 27... Bh6 {[%clk 0:01:03]} 28. Rc2
{[%clk 0:01:23.1]} 28... Qe7 {[%clk 0:00:57.7]} 29. g3 {[%clk 0:01:14.3]} 29...
Qa3 {[%clk 0:00:57.1]} 30. Rb1 {[%clk 0:01:07]} 30... Nfd7 {[%clk 0:00:53]} 31.
Be1 {[%clk 0:00:59.1]} 31... Qe7 {[%clk 0:00:49.9]} 32. Nc3 {[%clk 0:00:48.8]}
32... Nc5 {[%clk 0:00:49.6]} 33. Bf2 {[%clk 0:00:45.1]} 33... Nxb3 {[%clk
0:00:48]} 34. Rxb3 {[%clk 0:00:43.1]} 34... Nxc4 {[%clk 0:00:46.4]} 35. Nd1
{[%clk 0:00:36.6]} 35... Bg7 {[%clk 0:00:43.4]} 36. Rxc4 {[%clk 0:00:35.4]}
36... Rxc4 {[%clk 0:00:42.3]} 37. Qxc4 {[%clk 0:00:36.3]} 37... Rc8 {[%clk
0:00:40]} 38. Qe2 {[%clk 0:00:31]} 38... Rd8 {[%clk 0:00:26.5]} 39. Rd3 {[%clk
0:00:25.1]} 39... Qd7 {[%clk 0:00:26.4]} 40. Nb2 {[%clk 0:00:21.3]} 40... Qc8
{[%clk 0:00:26.2]} 41. Rd1 {[%clk 0:00:15.3]} 41... h5 {[%clk 0:00:22.9]} 42.
Nc4 {[%clk 0:00:15.7]} 42... Qc7 {[%clk 0:00:21.9]} 43. Kg2 {[%clk 0:00:11.1]}
43... Rc8 {[%clk 0:00:21.1]} 44. Ne3 {[%clk 0:00:10]} 44... h4 {[%clk
0:00:19.6]} 45. f4 {[%clk 0:00:08.1]} 45... Qc3 {[%clk 0:00:19.3]} 46. Kh3
{[%clk 0:00:05.4]} 46... Bxd4 {[%clk 0:00:16.6]} 47. Rd3 {[%clk 0:00:04.1]}
47... Qc5 {[%clk 0:00:16.2]} 48. Rxd4 {[%clk 0:00:04]} 48... Qxd4 {[%clk
0:00:15.8]} 49. Nf5 {[%clk 0:00:04.9]} 49... Qc5 {[%clk 0:00:10]} 50. Bxc5
{[%clk 0:00:04.3]} 50... Rxc5 {[%clk 0:00:10.2]} 51. Nxh4 {[%clk 0:00:04.6]}
51... b5 {[%clk 0:00:08.7]} 52. axb5 {[%clk 0:00:04.4]} 52... Rxb5 {[%clk
0:00:09.3]} 53. Nf3 {[%clk 0:00:04.8]} 53... Kg7 {[%clk 0:00:09.7]} 54. Ng5
{[%clk 0:00:05.3]} 54... Rb6 {[%clk 0:00:03.3]} 55. Qe3 {[%clk 0:00:05.4]} 55...
Rc6 {[%clk 0:00:02.4]} 56. Qd4+ {[%clk 0:00:05.7]} 56... f6 {[%clk 0:00:02.5]}
57. Qd7+ {[%clk 0:00:06.3]} 1-0

[Event "Early-Titled-Tuesday-Blitz-September-05-2023"]
[Site "Chess.com"]
[Date "2023.09.05"]
[Round "4"]
[White "Herman-NY"]
[Black "Kurai"]
[Result "1/2-1/2"]
[WhiteElo "2490"]
[BlackElo "2692"]
[TimeControl "180+1"]
[EndTime "8:38:48 PDT"]
[Termination "Game drawn by repetition"]

1. e4 {[%clk 0:03:00.9]} 1... e5 {[%clk 0:03:00]} 2. Nf3 {[%clk 0:03:00.9]} 2...
Nc6 {[%clk 0:03:00.3]} 3. Bb5 {[%clk 0:03:01.6]} 3... Nf6 {[%clk 0:03:00.7]} 4.
d3 {[%clk 0:03:01.8]} 4... Bc5 {[%clk 0:03:00.5]} 5. c3 {[%clk 0:03:02.5]} 5...
d5 {[%clk 0:03:00.1]} 6. Nbd2 {[%clk 0:03:02.3]} 6... O-O {[%clk 0:02:59.8]} 7.
O-O {[%clk 0:02:59]} 7... dxe4 {[%clk 0:02:54.1]} 8. dxe4 {[%clk 0:02:59.3]}
8... a5 {[%clk 0:02:54.6]} 9. Qc2 {[%clk 0:02:53.5]} 9... Qe7 {[%clk 0:02:51.6]}
10. a4 {[%clk 0:02:48.4]} 10... Nb8 {[%clk 0:02:51.3]} 11. Be2 {[%clk 0:02:46]}
11... c6 {[%clk 0:02:42.4]} 12. Nc4 {[%clk 0:02:42.2]} 12... Nbd7 {[%clk
0:02:37.8]} 13. Bd2 {[%clk 0:02:10.8]} 13... h6 {[%clk 0:02:37]} 14. Rab1 {[%clk
0:02:02.3]} 14... Re8 {[%clk 0:02:30.8]} 15. b4 {[%clk 0:02:01.4]} 15... axb4
{[%clk 0:02:30.8]} 16. cxb4 {[%clk 0:02:02.3]} 16... Bd4 {[%clk 0:02:31.5]} 17.
Nxd4 {[%clk 0:01:35.5]} 17... exd4 {[%clk 0:02:31.2]} 18. Bd3 {[%clk 0:01:36.4]}
18... Ne5 {[%clk 0:01:11.1]} 19. Nxe5 {[%clk 0:01:27.4]} 19... Qxe5 {[%clk
0:01:12]} 20. f4 {[%clk 0:00:33.6]} 20... Qe7 {[%clk 0:01:11.6]} 21. Rbe1 {[%clk
0:00:25.7]} 21... Bd7 {[%clk 0:01:07]} 22. a5 {[%clk 0:00:17.6]} 22... Ng4
{[%clk 0:00:58]} 23. Qb2 {[%clk 0:00:10.7]} 23... Qh4 {[%clk 0:00:38.6]} 24. h3
{[%clk 0:00:10.8]} 24... Qg3 {[%clk 0:00:38.6]} 25. hxg4 {[%clk 0:00:04]} 25...
Qxd3 {[%clk 0:00:38.7]} 26. f5 {[%clk 0:00:03.5]} 26... Rxe4 {[%clk 0:00:36.3]}
27. Rxe4 {[%clk 0:00:03.8]} 27... Qxe4 {[%clk 0:00:37.2]} 28. Rf4 {[%clk
0:00:03.8]} 28... Qe2 {[%clk 0:00:27.5]} 29. Rxd4 {[%clk 0:00:04.2]} 29... Be8
{[%clk 0:00:25.4]} 30. f6 {[%clk 0:00:04.7]} 30... g5 {[%clk 0:00:22.3]} 31. Qc3
{[%clk 0:00:05.2]} 31... Rc8 {[%clk 0:00:19.2]} 32. Qc5 {[%clk 0:00:04.6]} 32...
Qd1+ {[%clk 0:00:16.8]} 33. Kh2 {[%clk 0:00:04.6]} 33... Qb3 {[%clk 0:00:15]}
34. Qe7 {[%clk 0:00:03.2]} 34... Qe6 {[%clk 0:00:15.1]} 35. Rd8 {[%clk
0:00:03.3]} 35... Rxd8 {[%clk 0:00:13.7]} 36. Qxd8 {[%clk 0:00:03.5]} 36... Kh7
{[%clk 0:00:14.1]} 37. Qe7 {[%clk 0:00:03.4]} 37... Kg6 {[%clk 0:00:13.6]} 38.
Bc3 {[%clk 0:00:03.3]} 38... Qxe7 {[%clk 0:00:13.5]} 39. fxe7 {[%clk 0:00:03.6]}
39... f6 {[%clk 0:00:14.2]} 40. Bd4 {[%clk 0:00:04.1]} 40... Kf7 {[%clk
0:00:14.8]} 41. Bc5 {[%clk 0:00:05]} 41... Ke6 {[%clk 0:00:15.2]} 42. Kg3 {[%clk
0:00:05.6]} 42... Bg6 {[%clk 0:00:14.6]} 43. Kf3 {[%clk 0:00:06.1]} 43... Kd7
{[%clk 0:00:15.2]} 44. g3 {[%clk 0:00:06.6]} 44... Bf7 {[%clk 0:00:15.8]} 45.
Ke3 {[%clk 0:00:07]} 45... Be6 {[%clk 0:00:16.5]} 46. Kf3 {[%clk 0:00:07.9]}
46... Bf7 {[%clk 0:00:17]} 47. Ke3 {[%clk 0:00:07.6]} 47... Bg6 {[%clk
0:00:17.6]} 48. Kf3 {[%clk 0:00:08.5]} 48... Be8 {[%clk 0:00:18]} 49. Ke3 {[%clk
0:00:09]} 49... Bf7 {[%clk 0:00:18.9]} 50. Kf3 {[%clk 0:00:09.6]} 50... Be6
{[%clk 0:00:19.8]} 51. Ke3 {[%clk 0:00:10.3]} 51... Bxg4 {[%clk 0:00:20.4]} 52.
Ke4 {[%clk 0:00:11]} 52... Be6 {[%clk 0:00:21]} 53. Kf3 {[%clk 0:00:11.4]} 53...
f5 {[%clk 0:00:21.7]} 54. Kg2 {[%clk 0:00:11.4]} 54... Ke8 {[%clk 0:00:22.4]}
55. Kf2 {[%clk 0:00:12.1]} 55... Kf7 {[%clk 0:00:23.1]} 56. Kg2 {[%clk
0:00:12.7]} 56... Bd7 {[%clk 0:00:23.9]} 57. Kf2 {[%clk 0:00:13.3]} 57... Be8
{[%clk 0:00:24.6]} 58. Kg2 {[%clk 0:00:13.9]} 58... Ke6 {[%clk 0:00:25.3]} 59.
Kf2 {[%clk 0:00:14.6]} 59... h5 {[%clk 0:00:25.2]} 60. Kg2 {[%clk 0:00:14.9]}
60... Ke5 {[%clk 0:00:25.3]} 61. Bb6 {[%clk 0:00:14]} 61... Ke4 {[%clk
0:00:24.6]} 62. Bc7 {[%clk 0:00:14]} 62... f4 {[%clk 0:00:24.7]} 63. gxf4 {[%clk
0:00:14.1]} 63... gxf4 {[%clk 0:00:25.6]} 64. Kf2 {[%clk 0:00:12.6]} 64... Kf5
{[%clk 0:00:26.2]} 65. Kf3 {[%clk 0:00:12.5]} 65... Ke6 {[%clk 0:00:24.9]} 66.
Bxf4 {[%clk 0:00:12.9]} 66... Kxe7 {[%clk 0:00:25.5]} 67. Be3 {[%clk 0:00:12.7]}
67... Ke6 {[%clk 0:00:25.9]} 68. Kg3 {[%clk 0:00:13]} 68... Kd5 {[%clk
0:00:26.5]} 69. Bc5 {[%clk 0:00:12.7]} 69... Kc4 {[%clk 0:00:27.1]} 70. Kh4
{[%clk 0:00:13]} 70... Kd5 {[%clk 0:00:26.7]} 71. Kg5 {[%clk 0:00:12.8]} 71...
Ke4 {[%clk 0:00:27.3]} 72. Kh4 {[%clk 0:00:13.7]} 72... Kf5 {[%clk 0:00:27.6]}
73. Be7 {[%clk 0:00:13.1]} 73... Kg6 {[%clk 0:00:28]} 74. Bd8 {[%clk 0:00:13.6]}
74... Bd7 {[%clk 0:00:28.2]} 75. Be7 {[%clk 0:00:13.9]} 75... Bg4 {[%clk
0:00:28.8]} 76. Bf8 {[%clk 0:00:14.3]} 76... Kf5 {[%clk 0:00:29.4]} 77. Be7
{[%clk 0:00:14.8]} 77... Ke6 {[%clk 0:00:30.1]} 78. Bf8 {[%clk 0:00:15.4]} 78...
Kd5 {[%clk 0:00:30.8]} 79. Bc5 {[%clk 0:00:15.8]} 79... Kc4 {[%clk 0:00:31.4]}
80. Bf8 {[%clk 0:00:16.2]} 80... Kb5 {[%clk 0:00:32.1]} 81. Bc5 {[%clk
0:00:16.5]} 81... Ka6 {[%clk 0:00:32.8]} 82. Bf8 {[%clk 0:00:15.9]} 82... Kb5
{[%clk 0:00:32.7]} 83. Bc5 {[%clk 0:00:16.2]} 83... Kc4 {[%clk 0:00:32.6]} 84.
Bf8 {[%clk 0:00:16.6]} 84... Kb5 {[%clk 0:00:31.8]} 1/2-1/2